fUST/lending_fUST_20250930
["ID","MTS","AMOUNT","RATE_DAILY","PERIOD"]
[388496223,1759217113010,5000.0,0.00019512,2]
[388496245,1759217163162,300.0,0.00019511,2]
[388496251,1759217204964,695.82179882,0.00019413,2]
[388496253,1759217223125,300.0,0.00019511,2]
[388496255,1759217241860,1200.0,0.00019511,2]
[388496265,1759217342426,300.0,0.00019511,2]
[388496267,1759217406673,704.18820118,0.00019511,2]
[388496268,1759217406701,495.81179882,0.00019511,2]
[388496771,1759217440030,-500.0,0.00019512,2]
[388496773,1759217440041,-500.0,0.00019512,2]
[388496775,1759217440050,-34.05,0.00019512,2]
[388496941,1759217441625,-0.02875993,0.00019512,2]
[388497237,1759217446203,-465.92124007,0.00019512,2]
[388497239,1759217446213,-500.0,0.00019512,2]
[388497241,1759217446222,-500.0,0.00019512,2]
[388497243,1759217446231,-500.0,0.00019512,2]
[388497245,1759217446242,-334.07875993,0.00019512,2]
[388497357,1759217447470,-165.92124006,0.00019512,2]
[388497359,1759217447479,-482.94792894,0.00019512,2]
[388497360,1759217447488,-480.0,0.00019512,2]
[388497362,1759217447498,-480.0,0.00019512,2]
[388497364,1759217447508,-602.14,0.00019512,2]
[388497366,1759217447517,-480.0,0.00019512,2]
[388497368,1759217447526,-480.0,0.00019512,2]
[388497370,1759217447535,-480.0,0.00019512,2]
[388497372,1759217447544,-480.0,0.00019512,2]
[388497373,1759217447553,-480.0,0.00019512,2]
[388497375,1759217447562,-39.06768688,0.00019512,2]
[388497377,1759217447573,-549.87231312,0.00019512,2]
[388497379,1759217447583,-482.50148352,0.00019512,2]
[388497381,1759217447592,-480.0,0.00019512,2]
[388497383,1759217447601,-482.29818887,0.00019512,2]
[388497385,1759217447610,-214.42237291,0.00019512,2]
[388497765,1759217462528,300.0,0.00019511,2]
[388497766,1759217468321,272.79977344,0.00018729,2]
[388497767,1759217499536,608.84407395,0.00019413,2]
[388497768,1759217522641,300.0,0.00019511,2]
[388497769,1759217524158,199.08438339,0.00019173,2]
[388497771,1759217541035,155.0,0.00019511,2]
[388497772,1759217560696,300.0,0.000194,2]
[388497773,1759217561152,581.31006954,0.00019511,2]
[388497774,1759217561189,643.65405238,0.00019511,2]
[388497775,1759217561228,500.0,0.00019511,2]
[388497776,1759217561274,500.0,0.00019511,2]
[388497777,1759217561319,330.92417585,0.00019511,2]
[388497778,1759217561357,500.0,0.00019511,2]
[388497779,1759217561406,563.43883611,0.00019511,2]
[388497780,1759217561443,415.2,0.00019511,2]
[388497781,1759217561480,500.0,0.00019511,2]
[388497782,1759217561518,210.07738336,0.00019511,2]
[388497783,1759217574809,519.87,0.00019504,3]
[388497784,1759217582368,300.0,0.00019511,2]
[388497788,1759217615095,480.0,0.00019511,2]
[388497789,1759217636432,604.01982105,0.00019511,2]
[388497790,1759217641241,480.0,0.00019511,2]
[388497791,1759217642854,239.97563211,0.00019511,2]
[388497792,1759217642882,60.02436789,0.00019511,2]
[388497793,1759217657443,155.95592423,0.00019412,2]
[388497794,1759217662446,155.95592423,0.00019413,2]
[388497795,1759217674188,284.36691252,0.00019511,2]
[388497796,1759217674227,500.0,0.00019511,2]
[388497797,1759217674263,500.0,0.00019511,2]
[388497798,1759217674308,349.30075059,0.00019511,2]
[388497799,1759217674349,500.0,0.00019511,2]
[388497800,1759217674573,500.0,0.00019511,2]
[388497801,1759217674834,500.0,0.00019511,2]
[388497802,1759217674870,500.0,0.00019511,2]
[388497803,1759217675064,500.0,0.00019511,2]
[388497804,1759217678472,480.0,0.00019511,2]
[388497805,1759217685575,450.0,0.00019511,2]
[388497806,1759217702224,300.0,0.00019511,2]
[388497807,1759217706659,555.0,0.00019511,2]
[388497808,1759217732078,-265.57762709,0.00019512,2]
[388497809,1759217732106,-22.81965658,0.00019512,2]
[388497810,1759217733238,480.0,0.00019511,2]
[388497811,1759217735953,-311.60271633,0.00019512,2]
[388497812,1759217739288,-148.65593907,0.00019512,2]
[388497813,1759217739324,-111.75105369,0.00019512,2]
[388497814,1759217742215,-162.08015912,0.00019512,2]
[388497815,1759217742409,-206.16878719,0.00019512,2]
[388497816,1759217742444,-480.0,0.00019512,2]
[388497817,1759217742479,-480.0,0.00019512,2]
[388497818,1759217742514,-480.0,0.00019512,2]
[388497819,1759217742550,-483.43881299,0.00019512,2]
[388497820,1759217742584,-482.07130456,0.00019512,2]
[388497821,1759217742619,-480.0,0.00019512,2]
[388497822,1759217742654,-480.0,0.00019512,2]
[388497823,1759217742690,-480.0,0.00019512,2]
[388497824,1759217742726,-480.0,0.00019512,2]
[388497825,1759217742761,-129.40219052,0.00019512,2]
[388497826,1759217743305,-677.84780948,0.00019512,2]
[388497827,1759217743342,-483.12352438,0.00019512,2]
[388497828,1759217743375,-480.0,0.00019512,2]
[388497829,1759217743409,-480.0,0.00019512,2]
[388497830,1759217743444,-691.72,0.00019512,2]
[388497831,1759217743478,-419.58,0.00019512,2]
[388497832,1759217743513,-619.67733228,0.00019512,2]
[388497833,1759217743566,-2296.11266772,0.00019512,2]
[388497834,1759217743600,-577.06,0.00019512,2]
[388497835,1759217743635,-480.0,0.00019512,2]
[388497836,1759217744003,-3351.22,0.00019512,2]
[388497837,1759217744036,-480.0,0.00019512,2]
[388497838,1759217744068,-594.93,0.00019512,2]
[388497839,1759217744103,-480.0,0.00019512,2]
[388497840,1759217744424,-480.0,0.00019512,2]
[388497841,1759217744456,-383.82,0.00019512,2]
[388497842,1759217744489,-480.0,0.00019512,2]
[388497843,1759217744519,-525.67,0.00019512,2]
[388497844,1759217744551,-480.0,0.00019512,2]
[388497845,1759217744583,-480.0,0.00019512,2]
[388497846,1759217744616,-600.08,0.00019512,2]
[388497847,1759217744653,-480.0,0.00019512,2]
[388497848,1759217744685,-480.0,0.00019512,2]
[388497849,1759217744717,-485.43096213,0.00019512,2]
[388497850,1759217744770,-162.30997085,0.00019512,2]
[388497851,1759217744811,-317.69002915,0.00019512,2]
[388497852,1759217744844,-447.14,0.00019512,2]
[388497853,1759217744878,-480.0,0.00019512,2]
[388497854,1759217744913,-480.0,0.00019512,2]
[388497855,1759217744946,-150.0,0.00019512,2]
[388497856,1759217744979,-155.582,0.00019512,2]
[388497857,1759217745011,-452.75736324,0.00019512,2]
[388497858,1759217745042,-480.0,0.00019512,2]
[388497859,1759217745074,-461.56,0.00019512,2]
[388497860,1759217745109,-495.4,0.00019512,2]
[388497861,1759217745141,-480.0,0.00019512,2]
[388497862,1759217745174,-480.0,0.00019512,2]
[388497863,1759217745432,-480.0,0.00019512,2]
[388497864,1759217745465,-480.0,0.00019512,2]
[388497865,1759217745500,-480.0,0.00019512,2]
[388497866,1759217745534,-221.18529258,0.00019512,2]
[388497867,1759217745569,-732.33,0.00019512,2]
[388497868,1759217745603,-480.0,0.00019512,2]
[388497869,1759217745634,-480.0,0.00019512,2]
[388497870,1759217745666,-480.0,0.00019512,2]
[388497871,1759217745699,-480.0,0.00019512,2]
[388497872,1759217745732,-480.0,0.00019512,2]
[388497873,1759217745773,-480.0,0.00019512,2]
[388497874,1759217745805,-480.0,0.00019512,2]
[388497875,1759217745839,-480.0,0.00019512,2]
[388497876,1759217745872,-480.0,0.00019512,2]
[388497877,1759217745905,-483.8,0.00019512,2]
[388497878,1759217745941,-480.0,0.00019512,2]
[388497879,1759217745974,-518.63,0.00019512,2]
[388497880,1759217746008,-480.0,0.00019512,2]
[388497881,1759217746043,-156.61580492,0.00019512,2]
[388497882,1759217746076,-480.0,0.00019512,2]
[388497883,1759217746111,-410.36839016,0.00019512,2]
[388497884,1759217746284,-141.18160984,0.00019512,2]
[388497885,1759217747619,-286.23654563,0.00019512,2]
[388497886,1759217749200,-231.97491175,0.00019512,2]
[388497887,1759217749794,212.27596218,0.00019511,2]
[388497888,1759217750978,-157.19980469,0.00019512,2]
[388497889,1759217754276,2794.29,0.00019512,2]
[388497890,1759217755332,-154.43112863,0.00019512,2]
[388497891,1759217756819,-288.60595056,0.00019512,2]
[388497892,1759217758268,480.0,0.00019512,2]
[388497893,1759217759206,-208.07745018,0.00019512,2]
[388497894,1759217760910,-177.28303639,0.00019512,2]
[388497895,1759217761057,480.0,0.00019512,2]
[388497896,1759217765444,480.0,0.00019512,2]
[388497897,1759217765920,480.0,0.00019512,2]
[388497898,1759217767725,480.0,0.00019512,2]
[388497899,1759217771142,480.0,0.00019512,2]
[388497900,1759217771416,480.0,0.00019512,2]
[388497901,1759217775056,1108.44,0.00019512,2]
[388497902,1759217777346,480.0,0.00019512,2]
[388497903,1759217779129,480.0,0.00019512,2]
[388497904,1759217779358,246.72672817,0.00019512,2]
[388497905,1759217785547,773.08,0.00019512,2]
[388497906,1759217790769,262.83408997,0.00019512,2]
[388497907,1759217790796,2948.74591003,0.00019512,2]
[388497908,1759217791843,625.60012399,0.00019413,2]
[388497909,1759217793591,553.01,0.00019511,2]
[388497910,1759217797651,480.0,0.00019511,2]
[388497911,1759217798228,611.8,0.00019512,2]
[388497912,1759217798833,480.0,0.00019512,2]
[388497913,1759217803405,541.04,0.00019512,2]
[388497914,1759217808065,480.0,0.00019511,2]
[388497915,1759217808639,480.0,0.00019512,2]
[388497916,1759217820847,480.0,0.00019511,2]
[388497917,1759217822525,300.0,0.00019511,2]
[388497918,1759217826420,480.0,0.00019511,2]
[388497919,1759217840024,480.0,0.00019511,2]
[388497920,1759217841025,289.0,0.00019511,2]
[388497921,1759217867071,-341.54319708,0.00019512,2]
[388497922,1759217869020,-177.53680292,0.00019512,2]
[388497923,1759217869046,-99.90836231,0.00019512,2]
[388497924,1759217872242,-160.23361501,0.00019512,2]
[388497925,1759217873912,-219.85802268,0.00019512,2]
[388497926,1759217873939,-47.69306442,0.00019512,2]
[388497927,1759217875575,-300.0,0.00019512,2]
[388497928,1759217875690,480.0,0.00019511,2]
[388497929,1759217877531,-132.30693558,0.00019512,2]
[388497930,1759217877558,-68.46662689,0.00019512,2]
[388497931,1759217880487,-169.7629512,0.00019512,2]
[388497932,1759217883366,-241.77042191,0.00019512,2]
[388497933,1759217883397,-29.77059439,0.00019512,2]
[388497934,1759217885331,-385.83487905,0.00019512,2]
[388497935,1759217887460,-64.39452656,0.00019512,2]
[388497936,1759217887490,-205.57359027,0.00019512,2]
[388497937,1759217890466,300.0,0.00019511,2]
[388497938,1759217890851,-152.8879441,0.00019512,2]
[388497939,1759217892834,480.0,0.00019511,2]
[388497940,1759217892964,7971.01,0.00019414,2]
[388497941,1759217892995,10000.01,0.00019414,2]
[388497942,1759217893025,10000.01,0.00019414,2]
[388497943,1759217893056,10000.01,0.00019414,2]
[388497944,1759217893086,10000.01,0.00019414,2]
[388497945,1759217893117,10000.01,0.00019414,2]
[388497946,1759217893147,10000.01,0.00019414,2]
[388497947,1759217893175,10000.01,0.00019414,2]
[388497948,1759217893203,10000.01,0.00019414,2]
[388497949,1759217893232,10000.01,0.00019414,2]
[388497950,1759217895349,-223.55602795,0.00019414,2]
[388497951,1759217900975,1547.54662689,0.00019414,2]
[388497952,1759217912174,199.05683876,0.00019413,2]
[388497953,1759217912214,500.0,0.00019413,2]
[388497954,1759217912280,500.0,0.00019413,2]
[388497955,1759217912313,500.0,0.00019413,2]
[388497956,1759217912466,569.77352541,0.00019413,2]
[388497957,1759217912505,-246.23293198,0.00019414,2]
[388497958,1759217912540,500.0,0.00019413,2]
[388497959,1759217912705,500.0,0.00019413,2]
[388497960,1759217912847,500.0,0.00019413,2]
[388497961,1759217914777,-223.55602795,0.00019414,2]
[388497962,1759217918341,-242.87912392,0.00019414,2]
[388497963,1759217919993,-256.44397205,0.00019414,2]
[388497964,1759217922166,-245.48,0.00019414,2]
[388497965,1759217924014,-351.85199585,0.00019414,2]
[388497966,1759217924438,827.13884655,0.00019414,2]
[388497967,1759217940280,597.33199585,0.00019414,2]
[388497968,1759217942948,300.0,0.00019413,2]
[388497969,1759217958459,482.45013999,0.00019413,2]
[388497970,1759217975941,480.0,0.00019413,2]
[388497971,1759217976171,165.250848,0.0001856,2]
[388497972,1759218001374,300.0,0.00019413,2]
[388497973,1759218002344,300.0,0.00019413,2]
[388497974,1759218002377,300.0,0.00019413,2]
[388497975,1759218002526,300.0,0.00019413,2]
[388497976,1759218016390,631.46117855,0.00019413,2]
[388497977,1759218016422,568.53882145,0.00019413,2]
[388497978,1759218034734,1054.03,0.00019404,3]
[388497979,1759218045355,527.02,0.00019404,3]
[388497980,1759218046549,529.97,0.00019413,2]
[388497981,1759218047975,480.0,0.00019413,2]
[388497982,1759218055474,480.0,0.00019413,2]
[388497983,1759218055969,263.51,0.00019404,3]
[388497984,1759218062990,300.0,0.00019413,2]
[388497985,1759218066828,790.53,0.00019404,3]
[388497986,1759218080490,480.0,0.00019413,2]
[388497987,1759218080904,713.37461977,0.00019411,2]
[388497988,1759218091165,773.61,0.00019413,2]
[388497989,1759218092408,480.0,0.00019413,2]
[388497990,1759218097946,2559.42655878,0.00019411,2]
[388497991,1759218097973,1007.30018967,0.00019411,2]
[388497992,1759218100785,482.70768048,0.00019413,2]
[388497993,1759218107400,480.0,0.00019413,2]
[388497994,1759218113868,480.0,0.00019413,2]
[388497995,1759218122869,300.0,0.00019413,2]
[388497997,1759218145620,480.0,0.00019413,2]
[388497998,1759218148892,947.73,0.00019413,2]
[388498002,1759218150470,480.0,0.00019413,2]
[388498003,1759218156822,552.02,0.00019413,2]
[388498004,1759218165834,-480.0,0.00019413,2]
[388498005,1759218166682,-6900.19723417,0.00019414,2]
[388498006,1759218166790,-10000.01,0.00019414,2]
[388498007,1759218166958,-10000.01,0.00019414,2]
[388498008,1759218167132,-10000.01,0.00019414,2]
[388498009,1759218167285,-10000.01,0.00019414,2]
[388498010,1759218177282,-615.25,0.00019413,2]
[388498011,1759218177321,-8769.51,0.00019414,2]
[388498012,1759218177349,-10000.01,0.00019414,2]
[388498013,1759218177464,-10000.01,0.00019414,2]
[388498014,1759218177597,-10000.01,0.00019414,2]
[388498015,1759218177743,-10000.01,0.00019414,2]
[388498016,1759218177908,-10000.01,0.00019414,2]
[388498017,1759218187473,-480.0,0.00019413,2]
[388498018,1759218187509,-300.0,0.00019413,2]
[388498019,1759218194563,480.0,0.00019413,2]
[388498021,1759218203688,480.0,0.00019413,2]
[388498022,1759218207403,480.0,0.00019413,2]
[388498023,1759218208930,530.15,0.00019413,2]
[388498024,1759218209147,480.0,0.00019413,2]
[388498025,1759218209228,189.43,0.00019413,2]
[388498026,1759218209490,480.0,0.00019413,2]
[388498027,1759218212888,480.0,0.00019413,2]
[388498028,1759218222275,480.0,0.00019413,2]
[388498029,1759218228282,480.0,0.00019413,2]
[388498030,1759218232604,494.13,0.00019413,2]
[388498032,1759218233903,480.0,0.00019413,2]
[388498033,1759218234402,480.0,0.00019413,2]
[388498034,1759218235171,480.0,0.00019413,2]
[388498035,1759218238412,494.76,0.00019413,2]
[388498036,1759218240563,614.45,0.00019413,2]
[388498037,1759218243073,300.0,0.00019413,2]
[388498038,1759218249350,537.09,0.00019413,2]
[388498039,1759218249375,2305.16,0.00019413,2]
[388498040,1759218249769,3077.77,0.00019413,2]
[388498042,1759218258950,480.0,0.00019413,2]
[388498043,1759218263123,480.0,0.00019413,2]
[388498044,1759218264588,480.0,0.00019413,2]
[388498045,1759218276327,480.0,0.00019413,2]
[388498046,1759218281170,507.89,0.00019413,2]
[388498048,1759218294707,480.0,0.00019413,2]
[388498049,1759218297332,480.0,0.00019413,2]
[388498050,1759218302255,300.0,0.00019413,2]
[388498051,1759218304360,480.0,0.00019413,2]
[388498052,1759218310029,449.19,0.00019413,2]
[388498053,1759218310055,30.81,0.00019413,2]
[388498059,1759218315568,564.4,0.00019413,2]
[388498060,1759218317408,480.0,0.00019413,2]
[388498061,1759218320548,1200.0,0.00019413,2]
[388498062,1759218323304,480.0,0.00019413,2]
[388498063,1759218325022,482.85676906,0.00019413,2]
[388498064,1759218328667,480.0,0.00019413,2]
[388498065,1759218328919,480.0,0.00019413,2]
[388498066,1759218333625,480.0,0.00019413,2]
[388498067,1759218334941,291.01,0.00019413,2]
[388498068,1759218337086,480.0,0.00019413,2]
[388498069,1759218340887,480.0,0.00019413,2]
[388498070,1759218343200,480.0,0.00019413,2]
[388498071,1759218347907,480.0,0.00019413,2]
[388498072,1759218348657,701.81,0.00019413,2]
[388498073,1759218348897,480.0,0.00019413,2]
[388498074,1759218352752,793.05,0.00019404,3]
[388498075,1759218353207,480.0,0.00019413,2]
[388498076,1759218353696,483.5767731,0.00019413,2]
[388498077,1759218355920,172.49645784,0.00019413,2]
[388498078,1759218355947,307.50354216,0.00019413,2]
[388498079,1759218357473,480.0,0.00019413,2]
[388498080,1759218358195,480.0,0.00019413,2]
[388498081,1759218361239,331.03,0.00019413,2]
[388498082,1759218361712,480.0,0.00019413,2]
[388498083,1759218362487,300.0,0.00019413,2]
[388498084,1759218363645,480.0,0.00019413,2]
[388498085,1759218364397,480.0,0.00019413,2]
[388498086,1759218366792,480.0,0.00019413,2]
[388498087,1759218368995,480.0,0.00019413,2]
[388498088,1759218371477,480.0,0.00019413,2]
[388498089,1759218373038,480.0,0.00019413,2]
[388498090,1759218374795,480.0,0.00019413,2]
[388498091,1759218375058,624.20279229,0.00019314,2]
[388498092,1759218378117,480.0,0.00019413,2]
[388498093,1759218381104,480.0,0.00019413,2]
[388498094,1759218381252,480.0,0.00019413,2]
[388498095,1759218381536,480.0,0.00019413,2]
[388498096,1759218383403,480.0,0.00019413,2]
[388498097,1759218385293,480.0,0.00019413,2]
[388498098,1759218389835,480.0,0.00019413,2]
[388498099,1759218390424,277.27366555,0.00019413,2]
[388498100,1759218390452,202.72633445,0.00019413,2]
[388498101,1759218391437,480.0,0.00019413,2]
[388498102,1759218396305,480.0,0.00019413,2]
[388498103,1759218396411,480.0,0.00019413,2]
[388498104,1759218399747,480.0,0.00019413,2]
[388498105,1759218400129,-160.0,0.00019414,2]
[388498106,1759218400152,-130.22086844,0.00019414,2]
[388498107,1759218401271,480.0,0.00019413,2]
[388498108,1759218403144,800.0,0.00019295,2]
[388498109,1759218403186,480.0,0.00019413,2]
[388498110,1759218408068,480.0,0.00019413,2]
[388498111,1759218408499,480.0,0.00019413,2]
[388498112,1759218409429,480.0,0.00019413,2]
[388498113,1759218423191,300.0,0.00019413,2]
[388498114,1759218427287,497.03,0.00019413,2]
[388498115,1759218427940,480.0,0.00019413,2]
[388498116,1759218429414,480.0,0.00019413,2]
[388498117,1759218435647,480.0,0.00019413,2]
[388498118,1759218438276,2440.25366555,0.00019412,2]
[388498119,1759218438303,413.12773321,0.00019412,2]
[388498120,1759218438780,482.95787549,0.00019413,2]
[388498121,1759218443648,483.00805666,0.00019413,2]
[388498122,1759218444204,480.0,0.00019413,2]
[388498123,1759218444668,469.14,0.00019404,3]
[388498124,1759218446771,480.0,0.00019413,2]
[388498125,1759218451903,480.0,0.00019413,2]
[388498127,1759218461018,1062.25,0.00019413,2]
[388498128,1759218462750,800.0,0.00019363,2]
[388498129,1759218463897,480.0,0.00019413,2]
[388498130,1759218465286,472.34,0.00019404,3]
[388498131,1759218471880,740.87,0.00019413,2]
[388498132,1759218479071,536.88,0.00019413,2]
[388498133,1759218482392,300.0,0.00019413,2]
[388498134,1759218484567,586.31,0.00019413,2]
[388498135,1759218485921,157.45,0.00019404,3]
[388498136,1759218486444,1575.67633464,0.00019413,2]
[388498137,1759218486472,1373.85366536,0.00019413,2]
[388498138,1759218487050,2723.83,0.00019413,2]
[388498139,1759218496514,472.36,0.00019404,3]
[388498140,1759218501594,480.0,0.00019413,2]
[388498141,1759218506938,167.87,0.00019404,3]
[388498142,1759218518574,480.0,0.00019413,2]
[388498143,1759218521699,486.73,0.00019413,2]
[388498144,1759218527562,503.65,0.00019404,3]
[388498145,1759218530904,480.0,0.00019413,2]
[388498146,1759218538709,480.0,0.00019413,2]
[388498147,1759218540166,480.0,0.00019413,2]
[388498148,1759218542713,300.0,0.00019413,2]
[388498150,1759218564548,480.0,0.00019413,2]
[388498151,1759218573430,480.0,0.00019413,2]
[388498152,1759218579564,480.0,0.00019413,2]
[388498153,1759218582409,480.0,0.00019413,2]
[388498154,1759218582968,800.0,0.00019187,2]
[388498155,1759218596001,480.0,0.00019413,2]
[388498156,1759218599774,480.0,0.00019413,2]
[388498157,1759218602489,300.0,0.00019413,2]
[388498158,1759218607743,1200.0,0.00019413,2]
[388498159,1759218612281,480.0,0.00019413,2]
[388498160,1759218615100,9.4,0.00019413,2]
[388498161,1759218615128,470.6,0.00019413,2]
[388498163,1759218619898,480.0,0.00019413,2]
[388498164,1759218625580,480.0,0.00019413,2]
[388498165,1759218626753,480.0,0.00019413,2]
[388498211,1759218632343,-57044.63108171,0.00019414,2]
[388498213,1759218632354,-17876.29802792,0.00019414,2]
[388498342,1759218634730,480.0,0.00019413,2]
[388498344,1759218638185,-300.78393599,0.00019414,2]
[388498345,1759218638197,-1382.8095471,0.00019414,2]
[388498346,1759218638209,-7028.14017583,0.00019414,2]
[388498347,1759218638221,-1964.88298224,0.00019414,2]
[388498348,1759218638233,-1038.4071728,0.00019414,2]
[388498349,1759218638245,-1152.68162522,0.00019414,2]
[388498350,1759218638256,-1236.95149689,0.00019414,2]
[388498351,1759218638268,-45183.96553286,0.00019414,2]
[388498352,1759218638279,-8990.94965126,0.00019414,2]
[388498353,1759218638291,-21238.38058787,0.00019414,2]
[388498354,1759218638300,-800.0,0.0001944,2]
[388498355,1759218638310,-597.2243712,0.00019459,2]
[388498356,1759218638319,-480.0,0.00019511,2]
[388498357,1759218638329,-480.0,0.00019511,2]
[388498358,1759218638338,-121.53846563,0.00019512,2]
[388498359,1759218638347,-611.57,0.00019512,2]
[388498360,1759218638358,-480.0,0.00019512,2]
[388498361,1759218638367,-480.0,0.00019512,2]
[388498362,1759218638377,-480.0,0.00019512,2]
[388498363,1759218638387,-480.0,0.00019512,2]
[388498364,1759218638396,-480.0,0.00019512,2]
[388498365,1759218638406,-480.0,0.00019512,2]
[388498366,1759218638414,-480.0,0.00019512,2]
[388498367,1759218638424,-480.0,0.00019512,2]
[388498368,1759218638433,-480.0,0.00019512,2]
[388498369,1759218638443,-766.29,0.00019512,2]
[388498370,1759218638452,-390.36061708,0.00019512,2]
[388498371,1759218638461,-483.93604198,0.00019512,2]
[388498372,1759218638472,-480.0,0.00019512,2]
[388498373,1759218638487,-480.0,0.00019512,2]
[388498374,1759218638497,-480.0,0.00019512,2]
[388498375,1759218638507,-480.0,0.00019512,2]
[388498376,1759218638516,-480.0,0.00019512,2]
[388498377,1759218638526,-851.91,0.00019512,2]
[388498378,1759218638535,-480.0,0.00019512,2]
[388498379,1759218638545,-480.0,0.00019512,2]
[388498380,1759218638554,-481.94361492,0.00019512,2]
[388498381,1759218638564,-480.0,0.00019512,2]
[388498382,1759218638574,-480.0,0.00019512,2]
[388498383,1759218638583,-480.0,0.00019512,2]
[388498384,1759218638593,-480.0,0.00019512,2]
[388498385,1759218638603,-480.0,0.00019512,2]
[388498386,1759218638613,-480.0,0.00019512,2]
[388498387,1759218638623,-480.0,0.00019512,2]
[388498388,1759218638633,-500.0,0.00019512,2]
[388498389,1759218638643,-480.0,0.00019512,2]
[388498390,1759218638653,-785.23,0.00019512,2]
[388498391,1759218638662,-480.0,0.00019512,2]
[388498392,1759218638672,-480.0,0.00019512,2]
[388498393,1759218638681,-480.0,0.00019512,2]
[388498394,1759218638692,-553.90522368,0.00019512,2]
[388498395,1759218638701,-480.0,0.00019512,2]
[388498396,1759218638710,-480.0,0.00019512,2]
[388498397,1759218638721,-480.0,0.00019512,2]
[388498398,1759218638731,-480.0,0.00019512,2]
[388498399,1759218638740,-480.0,0.00019512,2]
[388498400,1759218638750,-3014.8,0.00019512,2]
[388498401,1759218638759,-480.0,0.00019512,2]
[388498402,1759218638768,-480.0,0.00019512,2]
[388498403,1759218638778,-480.0,0.00019512,2]
[388498404,1759218638787,-480.0,0.00019512,2]
[388498405,1759218638797,-381.52309809,0.00019512,2]
[388498407,1759218638810,-98.47690191,0.00019512,2]
[388498409,1759218638820,-480.0,0.00019512,2]
[388498411,1759218638829,-480.0,0.00019512,2]
[388498413,1759218638839,-480.0,0.00019512,2]
[388498415,1759218638849,-480.0,0.00019512,2]
[388498417,1759218638858,-623.7,0.00019512,2]
[388498418,1759218638867,-480.0,0.00019512,2]
[388498420,1759218638876,-480.0,0.00019512,2]
[388498422,1759218638885,-480.0,0.00019512,2]
[388498424,1759218638895,-480.0,0.00019512,2]
[388498426,1759218638905,-480.0,0.00019512,2]
[388498428,1759218638914,-483.36441786,0.00019512,2]
[388498430,1759218638922,-480.0,0.00019512,2]
[388498432,1759218638931,-500.0,0.00019512,2]
[388498434,1759218638941,-1258.0,0.00019512,2]
[388498436,1759218638950,-151.0,0.00019512,2]
[388498438,1759218638959,-151.0,0.00019512,2]
[388498440,1759218638967,-500.0,0.00019512,2]
[388498441,1759218638977,-151.0,0.00019512,2]
[388498443,1759218638986,-2384.77372988,0.00019512,10]
[388498620,1759218640715,-0.05788553,0.00019512,10]